bitfinex-derivatives/quotes_ETHF0:USTF0_20250704
["timestamp","ask_amount","ask_price","bid_price","bid_amount"]
[1751602673796,4.64334,2585.0,2584.9,1.52081]
[1751602674095,4.64334,2585.0,2584.8,2.16856]
[1751602674295,4.64334,2585.0,2584.9,0.74736]
[1751602674494,4.64334,2585.0,2584.9,1.52081]
[1751602674789,4.64334,2585.0,2584.9,0.77345]
[1751602674994,4.64334,2585.0,2584.8,2.16856]
[1751602675195,4.64334,2585.0,2584.9,0.74736]
[1751602675699,0.77345,2584.9,2584.8,1.3951]
[1751602675898,4.64334,2585.0,2584.9,0.74736]
[1751602676399,4.64334,2585.0,2584.8,2.16858]
[1751602676599,4.64334,2585.0,2584.9,0.74736]
[1751602676994,1.43554,2585.0,2584.9,0.74736]
[1751602677196,4.64334,2585.0,2584.8,2.16858]
[1751602677397,4.64334,2585.0,2584.9,0.74736]
[1751602677799,4.64334,2585.0,2584.8,2.16858]
[1751602678100,4.64334,2585.0,2584.9,0.74736]
[1751602678702,4.64333,2585.0,2584.8,1.3951]
[1751602678903,4.64333,2585.0,2584.9,0.74736]
[1751602679299,0.6621,2585.0,2584.9,0.77345]
[1751602679500,3.8699,2585.0,2584.9,0.77345]
[1751602680502,4.64332,2585.0,2584.9,0.77345]
[1751602682106,3.8699,2585.0,2584.9,0.77345]
[1751602682601,0.6621,2585.0,2584.9,0.77345]
[1751602683807,0.7734,2585.1,2584.9,1.52081]
[1751602684008,3.98122,2585.0,2584.9,1.52081]
[1751602684402,3.2078,2585.0,2584.9,1.52081]
[1751602684798,39.44895873,2585.2,2585.0,0.77339]
[1751602685002,1.05722407,2585.1,2585.0,2.79799]
[1751602685208,1.05722407,2585.1,2585.0,2.79802]
[1751602685409,1.05722407,2585.1,2585.0,3.54538]
[1751602685710,35.9796,2585.2,2585.1,0.77339]
[1751602686009,37.03677195,2585.2,2585.1,2.86675]
[1751602686211,37.81013195,2585.2,2585.1,1.346]
[1751602686410,37.03677195,2585.2,2585.1,2.11939]
[1751602686912,37.81013195,2585.2,2585.1,2.11939]
[1751602687605,36.40217195,2585.2,2585.1,2.86675]
[1751602688110,37.17553195,2585.2,2585.1,2.86675]
[1751602688708,36.40217195,2585.2,2585.1,2.86675]
[1751602689506,1.05717195,2585.2,2585.1,2.86675]
[1751602690708,4.26497195,2585.2,2585.1,2.86675]
[1751602691007,7.67832068,2585.2,2585.1,0.74736]
[1751602692311,7.67832068,2585.2,2585.1,2.04936]
[1751602694109,7.67832068,2585.2,2585.1,0.74736]
[1751602694710,7.67832068,2585.2,2584.9,0.6949]
[1751602694711,0.77342,2585.0,2584.9,0.6949]
[1751602694908,3.41340873,2585.0,2584.9,0.6949]
[1751602695110,3.41340873,2585.0,2584.9,0.74736]
[1751602695416,4.47109578,2585.0,2584.9,0.74736]
[1751602698317,0.77345,2584.9,2584.7,0.7735]
[1751602698517,0.77345,2584.9,2584.8,0.74736]
[1751602699119,1.8313062,2584.9,2584.8,0.74736]
[1751602699722,0.77345,2584.9,2584.8,0.74736]
[1751602701019,3.98125,2584.9,2584.8,0.74736]
[1751602701721,5.0396201,2584.9,2584.8,0.74736]
[1751602703317,5.0396201,2584.9,2584.6,2.09312]
[1751602703318,0.7735,2584.8,2584.6,2.09312]
[1751602703518,1.4433,2584.8,2584.6,2.09312]
[1751602703713,1.4433,2584.8,2584.7,0.74736]
[1751602704114,0.77351,2584.7,2584.6,1.3196]
[1751602704315,0.77351,2584.7,2584.5,2.11976]
[1751602704516,0.77351,2584.7,2584.6,0.74736]
[1751602704716,4.08328873,2584.8,2584.6,1.5209]
[1751602705023,0.77351,2584.7,2584.6,1.5209]
[1751602705223,0.77351,2584.7,2584.6,2.8854]
[1751602705411,0.77351,2584.7,2584.6,2.11186]
[1751602708021,3.30978873,2584.8,2584.6,2.8854]
[1751602708022,4.08328873,2584.8,2584.6,2.8854]
[1751602708225,3.30978873,2584.8,2584.7,0.77351]
[1751602708418,5.14044474,2584.8,2584.7,2.09791]
[1751602708724,2.50045601,2584.8,2584.7,1.3244]
[1751602709229,1.44328,2584.8,2584.7,1.3244]
[1751602709820,4.08326873,2584.8,2584.0,9.01952205]
[1751602710027,0.77356,2584.6,2584.4,0.74736]
[1751602710222,3.30978873,2584.8,2584.4,2.84536]
[1751602710419,0.77356,2584.6,2584.4,2.84536]
[1751602710619,0.77356,2584.6,2584.5,0.7045]
[1751602710820,0.77356,2584.6,2584.5,2.0113]
[1751602719329,2.63998873,2584.6,2584.2,3.2078]
[1751602719530,0.77357,2584.5,2584.4,0.74736]
[1751602719729,1.43137,2584.5,2584.4,0.74736]
[1751602722628,1.43137,2584.5,2584.3,2.75513]
[1751602722835,1.43137,2584.5,2584.4,2.15176]
[1751602723537,0.6578,2584.5,2584.4,2.92536]
[1751602723728,0.77357,2584.5,2584.4,2.15176]
[1751602723928,0.6765,2584.7,2584.5,0.77356]
[1751602724135,0.77352,2584.7,2584.5,2.17796]
[1751602724331,0.77352,2584.7,2584.6,2.10456]
[1751602724533,1.83107338,2584.7,2584.6,3.50896]
[1751602725537,1.83107338,2584.7,2584.6,2.10456]
[1751602725737,1.83107338,2584.7,2584.2,6.62143873]
[1751602725738,0.7736,2584.4,2584.3,1.4044]
[1751602725933,0.77359,2584.5,2584.3,3.48203]
[1751602726134,0.77359,2584.5,2584.4,1.32]
[1751602726435,0.77359,2584.5,2584.4,2.06736]
[1751602726737,1.44476,2584.6,2584.4,2.84096]
[1751602727036,0.77357,2584.5,2584.4,1.32]
[1751602727226,0.77357,2584.5,2584.3,2.07761]
[1751602727430,0.77357,2584.5,2584.4,0.74736]
[1751602728435,0.77357,2584.5,2584.4,1.52096]
[1751602728637,0.77357,2584.5,2584.4,0.74736]
[1751602729632,0.77357,2584.5,2584.4,1.52096]
[1751602729937,0.6712,2584.6,2584.5,0.77357]
[1751602730235,1.44474,2584.6,2584.5,0.74736]
[1751602735234,2.50142516,2584.6,2584.5,0.74736]
[1751602735439,1.44474,2584.6,2584.5,0.74736]
[1751602735639,2.50142735,2584.6,2584.5,0.74736]
[1751602736940,1.44474,2584.6,2584.5,0.74736]
[1751602737633,2.50150909,2584.6,2584.5,0.74736]
[1751602739737,2.50150909,2584.6,2584.5,2.08866]
[1751602742441,2.50150909,2584.6,2584.5,0.74736]
[1751602744844,0.7736,2584.4,2584.3,2.0303]
[1751602745445,0.7736,2584.4,2584.3,2.77766]
[1751602746445,0.7736,2584.4,2584.3,1.39336]
[1751602746937,0.7736,2584.4,2584.3,0.74736]
[1751602747941,3.41358873,2584.4,2584.3,0.74736]
[1751602748147,4.47063083,2584.4,2584.3,0.74736]
[1751602748449,4.47053391,2584.4,2584.3,0.74736]
[1751602749347,0.77366,2584.2,2584.1,3.8602]
[1751602749548,0.77366,2584.2,2584.1,5.2315]
[1751602749744,0.77366,2584.2,2584.1,5.97886]
[1751602749950,0.77366,2584.2,2584.1,1.39976]
[1751602750145,0.77369,2584.1,2584.0,0.6957]
[1751602750452,3.98149,2584.1,2583.9,0.658]
[1751602750750,39.56798222,2584.0,2583.6,0.6766]
[1751602750942,0.77378,2583.8,2583.7,0.74736]
[1751602751344,0.77389,2583.5,2583.3,0.6766]
[1751602751543,0.77389,2583.5,2583.3,2.10852]
[1751602751849,0.77389,2583.5,2583.4,2.08476]
[1751602753345,41.08478873,2583.5,2582.6,3.87746205]
[1751602753555,3.41394873,2583.2,2583.1,0.74736]
[1751602753753,6.62174873,2583.2,2583.1,0.74736]
[1751602754747,3.98176,2583.2,2583.1,0.74736]
[1751602754949,0.77396,2583.2,2583.1,0.74736]
[1751602755857,0.77396,2583.2,2583.1,1.39786]
[1751602757652,0.651,2583.3,2582.8,0.6652]
[1751602757853,0.77399,2583.1,2583.0,0.74736]
[1751602758252,0.77405,2582.9,2582.8,1.3157]
[1751602758651,0.77405,2582.9,2582.8,2.06306]
[1751602759046,0.77404,2583.0,2582.8,2.06306]
[1751602759247,0.77404,2583.0,2582.8,1.3157]
[1751602759449,0.77404,2583.0,2582.9,0.74736]
[1751602762058,0.77405,2582.9,2582.8,1.3157]
[1751602762261,1.41015,2582.9,2582.8,2.06306]
[1751602762754,0.77408,2582.8,2582.7,3.2078]
[1751602762960,0.77414,2582.6,2582.5,0.6633]
[1751602763353,0.77414,2582.6,2582.5,1.41066]
[1751602763852,0.7742,2582.4,2582.3,3.2078]
[1751602764054,0.7742,2582.4,2582.3,3.95516]
[1751602765958,0.77423,2582.3,2582.2,0.6633]
[1751602766352,0.77423,2582.3,2582.2,1.41066]
[1751602768770,0.77426,2582.2,2582.1,0.6614]
[1751602768970,0.77435,2581.9,2581.8,0.6859]
[1751602769367,0.77435,2581.9,2581.8,1.43326]
[1751602769568,0.77435,2581.9,2581.8,2.71146]
[1751602774174,2.63998873,2582.0,2581.6,3.2078]
[1751602774374,0.77441,2581.7,2581.6,3.95516]
[1751602782285,0.77441,2581.7,2581.6,5.34376]
[1751602782688,0.77441,2581.7,2581.6,4.5964]
[1751602782887,0.77441,2581.7,2581.6,5.34376]
[1751602786594,0.77441,2581.7,2581.6,6.1182]
[1751602786794,0.7744,2581.8,2581.6,11.1182]
[1751602786994,0.77429,2582.1,2582.0,0.74736]
[1751602787194,0.77428,2582.2,2582.0,4.16166873]
[1751602787397,0.77428,2582.2,2582.1,1.42739]
[1751602787596,0.77428,2582.2,2582.1,3.45965]
[1751602787790,0.77428,2582.2,2582.1,2.68536]
[1751602787993,0.77428,2582.2,2582.1,3.45965]
[1751602788498,0.77422,2582.4,2582.3,0.77422]
[1751602788695,0.77422,2582.4,2582.3,4.16156873]
[1751602789194,11.6095,2582.8,2582.4,0.77419]
[1751602789399,0.77414,2582.6,2582.5,1.2849]
[1751602789897,0.77414,2582.6,2582.5,2.03226]
[1751602792500,0.77413,2582.7,2582.5,2.03226]
[1751602792700,0.77413,2582.7,2582.5,1.2849]
[1751602792999,0.77413,2582.7,2582.6,1.39196]
[1751602793199,1.83259032,2582.7,2582.6,1.39196]
[1751602800199,0.77413,2582.7,2582.6,1.39196]
[1751602800397,0.77413,2582.7,2582.6,0.74736]
[1751602800598,3.41411873,2582.7,2582.6,0.74736]
[1751602801096,3.41411873,2582.7,2582.4,0.7039]
[1751602801097,0.77423,2582.3,2582.2,3.2078]
[1751602801303,0.77423,2582.3,2582.2,4.5953]
[1751602801500,0.77423,2582.3,2582.2,2.13486]
[1751602806407,0.77423,2582.3,2582.2,2.81926]
[1751602807612,1.42532,2582.4,2582.2,3.59351]
[1751602807808,1.42532,2582.4,2582.3,0.74736]
[1751602808007,1.42532,2582.4,2582.3,2.13756]
[1751602812418,0.6511,2582.4,2582.3,2.91179]
[1751602812615,1.4253,2582.4,2582.3,2.91179]
[1751602813516,1.4253,2582.4,2582.3,2.13756]
[1751602813715,1.4253,2582.4,2582.3,2.91179]
[1751602815516,0.6511,2582.4,2582.3,2.91179]
[1751602818226,3.2078,2582.6,2582.5,0.77417]
[1751602818421,3.2078,2582.6,2582.5,4.16151873]
[1751602818618,3.2078,2582.6,2582.5,1.52153]
[1751602818819,3.98194,2582.6,2582.5,3.51513]
[1751602819020,3.2078,2582.6,2582.5,3.51513]
[1751602820032,0.77413,2582.7,2582.5,3.51513]
[1751602820324,0.77413,2582.7,2582.6,0.74736]
[1751602820725,0.77414,2582.6,2582.5,2.76777]
[1751602821527,0.77413,2582.7,2582.5,3.51513]
[1751602821717,0.77413,2582.7,2582.6,2.8746]
[1751602823518,1.4646,2582.8,2582.6,2.8746]
[1751602823724,0.6905,2582.8,2582.7,1.52147]
[1751602824028,0.6905,2582.8,2582.7,2.92647]
[1751602825426,0.77407,2582.9,2582.7,2.15236]
[1751602825631,12.33204,2583.0,2582.9,0.77405]
[1751602825929,11.97247602,2583.0,2582.9,1.52141]
[1751602826337,3.9818,2583.1,2582.9,2.86151]
[1751602826630,3.9818,2583.1,2583.0,1.52138]
[1751602826828,5.04052682,2583.1,2583.0,1.52138]
[1751602828232,3.9818,2583.1,2583.0,1.52138]
[1751602831237,3.2078,2583.1,2583.0,1.52138]
[1751602831933,3.98179,2583.1,2583.0,1.52138]
[1751602832327,0.77399,2583.1,2583.0,1.52138]
[1751602832930,0.77399,2583.1,2583.0,0.74736]
[1751602834335,0.6551,2583.3,2583.1,0.77399]
[1751602834336,1.42904,2583.3,2583.1,0.77399]
[1751602834630,0.77396,2583.2,2583.1,1.52135]
[1751602834835,0.77396,2583.2,2583.1,0.77399]
[1751602835726,0.6551,2583.3,2583.0,0.774]
[1751602835927,3.41394873,2583.2,2583.1,0.74736]
[1751602836334,0.77399,2583.1,2582.9,0.77403]
[1751602836731,0.6746,2583.0,2582.9,0.77403]
[1751602837137,0.6746,2583.0,2582.9,1.52139]
[1751602837338,1.44862,2583.0,2582.9,1.52139]
[1751602839040,0.6746,2583.0,2582.9,1.52139]
[1751602839439,0.6746,2583.0,2582.9,2.91619]
[1751602839840,1.44862,2583.0,2582.9,2.91619]
[1751602842636,1.44862,2583.0,2582.9,2.16883]
[1751602842843,1.44862,2583.0,2582.9,2.91619]
[1751602849344,1.44862,2583.0,2582.8,3.8871]
[1751602849547,0.7741,2582.8,2582.7,0.77409]
[1751602849747,0.7741,2582.8,2582.7,1.52145]
[1751602849947,2.63998873,2582.8,2582.5,2.0836]
[1751602850150,2.63998873,2582.8,2582.5,0.77416]
[1751602850151,0.77415,2582.6,2582.5,0.77416]
[1751602854257,0.77418,2582.5,2582.4,0.77418]
[1751602854647,0.77418,2582.5,2582.4,1.52154]
[1751602854848,0.77416,2582.6,2582.5,0.77417]
[1751602855155,0.77416,2582.6,2582.5,1.52153]
[1751602855351,0.77416,2582.6,2582.4,0.77418]
[1751602855653,0.77416,2582.6,2582.5,0.74736]
[1751602855852,0.77416,2582.6,2582.5,1.52153]
[1751602856053,1.45063,2582.7,2582.5,0.77417]
[1751602856353,0.77414,2582.6,2582.5,0.77417]
[1751602856759,0.77418,2582.5,2582.4,0.77418]
[1751602856956,0.77418,2582.5,2582.4,2.18218]
[1751602857156,0.77418,2582.5,2582.4,2.92954]
[1751602857654,0.77415,2582.6,2582.5,0.77415]
[1751602857957,0.77415,2582.6,2582.5,1.52151]
[1751602858151,0.77415,2582.6,2582.5,0.77415]
[1751602860054,1.45062,2582.7,2582.6,0.77414]
[1751602860265,0.6765,2582.7,2582.6,2.12424]
[1751602860558,0.6765,2582.7,2582.6,3.5491]
[1751602861652,1.46097,2582.9,2582.8,0.77408]
[1751602861852,0.77408,2582.8,2582.7,2.87154]
[1751602862053,1.47603,2583.0,2582.9,0.77405]
[1751602862252,1.47602,2583.0,2582.9,0.77405]
[1751602862554,0.6993,2583.3,2583.1,0.77396]
[1751602862753,0.77399,2583.1,2583.0,2.22637]
[1751602863158,0.77398,2583.2,2583.0,2.22637]
[1751602863553,0.77399,2583.1,2583.0,2.22637]
[1751602864161,0.77398,2583.2,2583.0,2.22637]
[1751602864659,0.77399,2583.1,2583.0,2.22637]
[1751602864958,0.77398,2583.2,2583.0,2.22637]
[1751602865558,0.77399,2583.1,2583.0,2.22637]
[1751602865758,0.77399,2583.1,2583.0,1.52137]
[1751602866759,0.77399,2583.1,2583.0,0.74736]
[1751602867060,0.77399,2583.1,2583.0,1.52138]
[1751602867453,0.77399,2583.1,2583.0,0.74736]
[1751602872667,0.77404,2583.0,2582.8,2.82706]
[1751602872858,0.77404,2583.0,2582.9,1.3198]
[1751602873060,0.77404,2583.0,2582.9,2.06716]
[1751602875162,0.77404,2583.0,2582.9,2.84121]
[1751602875663,0.77404,2583.0,2582.9,2.06716]
[1751602875866,0.77408,2582.8,2582.7,0.6867]
[1751602876261,0.77408,2582.8,2582.7,1.43406]
[1751602876456,0.77417,2582.5,2582.4,0.6594]
[1751602876662,0.7742,2582.4,2582.3,3.2078]
[1751602876965,1.4773,2582.4,2582.3,3.2078]
[1751602877165,1.4773,2582.4,2582.3,3.95516]
[1751602877569,1.4773,2582.4,2582.3,5.94326]
[1751602880168,0.7742,2582.4,2582.3,5.94326]
[1751602880365,0.7742,2582.4,2582.3,6.71749]
[1751602880566,0.7742,2582.4,2582.3,5.94326]
[1751602882673,0.7742,2582.4,2582.3,6.71749]
[1751602884073,0.7742,2582.4,2582.3,5.94326]
[1751602884374,0.7742,2582.4,2582.3,6.71749]
[1751602884672,0.7742,2582.4,2582.3,2.73546]
[1751602885571,0.7742,2582.4,2582.3,3.50969]
[1751602885870,0.7742,2582.4,2582.3,2.73546]
[1751602888171,3.982,2582.4,2582.3,0.74736]
[1751602888569,0.77429,2582.1,2582.0,1.3436]
[1751602888969,0.77429,2582.1,2582.0,2.09096]
[1751602889271,1.47689,2582.1,2582.0,2.09096]
[1751602892478,1.47689,2582.1,2582.0,0.74736]
[1751602895681,0.77432,2582.0,2581.9,0.641]
[1751602895881,0.77432,2582.0,2581.9,1.38836]
[1751602897279,0.77432,2582.0,2581.9,2.71686]
[1751602897975,0.77432,2582.0,2581.9,3.49121]
[1751602898279,1.47691,2582.1,2581.9,3.49121]
[1751602898480,0.77432,2582.0,2581.9,3.49121]
[1751602901081,0.77432,2582.0,2581.9,2.71686]
[1751602902683,0.77432,2582.0,2581.9,1.9695]
[1751602902885,0.77432,2582.0,2581.9,2.71686]
[1751602903279,0.77432,2582.0,2581.9,3.49121]
[1751602903485,1.47691,2582.1,2581.9,3.49121]
[1751602903686,1.47691,2582.1,2582.0,0.77432]
[1751602904186,1.47691,2582.1,2582.0,2.05632]
[1751602905586,1.47691,2582.1,2582.0,1.282]
[1751602905982,0.77432,2582.0,2581.9,0.641]
[1751602906182,0.77432,2582.0,2581.9,1.38836]
[1751602907189,0.77432,2582.0,2581.9,2.16271]
[1751602907384,0.77432,2582.0,2581.9,1.38836]
[1751602908086,0.77432,2582.0,2581.9,0.641]
[1751602908791,0.77432,2582.0,2581.9,1.38836]
[1751602911993,0.77432,2582.0,2581.9,2.16271]
[1751602912188,0.77432,2582.0,2581.9,2.77526]
[1751602912696,0.77438,2581.8,2581.7,0.638]
[1751602913190,0.77438,2581.8,2581.7,1.38536]
[1751602913387,0.77438,2581.8,2581.7,2.77226]
[1751602914787,0.77438,2581.8,2581.7,3.54667]
[1751602915195,0.77437,2581.9,2581.8,0.77438]
[1751602915391,0.77437,2581.9,2581.8,5.33018]
[1751602915592,0.77437,2581.9,2581.8,6.07754]
[1751602915789,0.77437,2581.9,2581.8,5.30316]
[1751602916194,0.77437,2581.9,2581.8,6.07754]
[1751602916590,0.77437,2581.9,2581.8,5.30316]
[1751602917694,0.77437,2581.9,2581.8,6.07754]
[1751602918494,0.77437,2581.9,2581.8,5.30316]
[1751602919697,0.77437,2581.9,2581.8,2.09536]
[1751602919895,0.77441,2581.7,2581.6,0.6561]
[1751602920197,0.77444,2581.6,2581.5,3.2078]
[1751602920397,0.77444,2581.6,2581.5,3.95516]
[1751602921099,0.77444,2581.6,2581.5,0.74736]
[1751602921493,0.77443,2581.7,2581.5,1.52183]
[1751602921693,0.77442,2581.7,2581.5,1.52183]
[1751602921895,0.77442,2581.7,2581.6,2.0174]
[1751602922596,1.4783,2581.8,2581.6,3.5392]
[1751602922790,1.4783,2581.8,2581.2,7.07031504]
[1751602922791,0.77453,2581.3,2581.2,3.2078]
[1751602922993,3.41451873,2581.3,2581.2,3.2078]
[1751602923904,0.77459,2581.1,2581.0,0.6731]
[1751602924295,5.84778873,2581.1,2580.6,3.8712]
[1751602924491,0.77471,2580.8,2580.7,0.6877]
[1751602924704,0.77471,2580.8,2580.7,1.43506]
[1751602924909,1.41021,2580.8,2580.7,0.74736]
[1751602925197,0.77471,2580.7,2580.6,3.8712]
[1751602925598,0.77471,2580.7,2580.6,4.61856]
[1751602927001,0.6355,2580.8,2580.6,5.39329]
[1751602927195,0.6355,2580.8,2580.7,0.74736]
[1751602927393,0.6355,2580.8,2580.7,0.77471]
[1751602927801,1.41018,2580.8,2580.6,4.64592]
[1751602928097,1.41018,2580.8,2580.7,0.74736]
[1751602928299,1.41018,2580.8,2580.7,1.52207]
[1751602928597,1.41018,2580.8,2580.7,0.77471]
[1751602929300,1.41018,2580.8,2580.7,2.11901]
[1751602929494,0.6355,2580.8,2580.7,2.11901]
[1751602930095,3.98241,2581.1,2580.7,4.73164873]
[1751602930301,3.2078,2581.1,2581.0,1.52198]
[1751602930696,3.2078,2581.1,2581.0,2.77272]
[1751602930896,3.2078,2581.1,2581.0,3.52008]
[1751602931096,0.77455,2581.3,2581.2,0.77456]
[1751602931405,0.77455,2581.3,2581.2,1.52192]
[1751602931590,10.903,2581.4,2581.3,0.77453]
[1751602931591,11.67752,2581.4,2581.3,0.77453]
[1751602931797,0.77453,2581.3,2581.2,2.08243]
[1751602932102,11.67752,2581.4,2581.3,0.77453]
[1751602932299,10.903,2581.4,2581.3,0.77453]
[1751602932503,11.6775,2581.4,2581.3,1.52189]
[1751602932693,11.6775,2581.4,2581.3,0.77453]
[1751602932898,11.6775,2581.4,2581.3,1.52189]
[1751602933305,11.6775,2581.4,2581.3,0.74736]
[1751602933602,0.77453,2581.3,2581.2,0.77455]
[1751602933800,3.41451873,2581.3,2581.2,0.77455]
[1751602934000,3.41451873,2581.3,2581.2,1.52191]
[1751602934501,2.63998873,2581.3,2581.2,1.52191]
[1751602935094,10.903,2581.4,2581.3,0.77453]
[1751602935300,10.903,2581.4,2581.3,1.52189]
[1751602935600,10.903,2581.4,2581.3,0.77453]
[1751602935999,10.903,2581.4,2581.3,1.52189]
[1751602938209,3.2078,2581.6,2581.5,0.77447]
[1751602938405,11.67437,2581.9,2581.8,0.77438]
[1751602938807,11.67435,2581.9,2581.8,0.77438]
[1751602940007,11.67437,2581.9,2581.8,0.77438]
[1751602940507,0.77439,2581.8,2581.7,0.77438]
[1751602940707,0.77439,2581.8,2581.7,1.52174]
[1751602940900,0.77439,2581.8,2581.7,0.77438]
[1751602941107,0.77441,2581.7,2581.6,1.44352]
[1751602941601,0.77441,2581.7,2581.6,2.19088]
[1751602943409,3.41439873,2581.7,2581.6,1.41646]
[1751602943705,3.41439873,2581.7,2581.6,0.74736]
[1751602943901,3.41439873,2581.7,2581.4,0.6887]
[1751602944205,0.7745,2581.4,2581.3,0.65]
[1751602944506,0.77453,2581.3,2581.2,3.2078]
[1751602945008,0.77453,2581.3,2581.2,4.72972]
[1751602945211,0.77453,2581.3,2581.2,3.95516]
[1751602945412,3.41451873,2581.3,2581.2,3.2078]
[1751602945609,3.41451873,2581.3,2581.2,3.98236]
[1751602946204,2.63998873,2581.3,2581.2,3.98236]
[1751602946407,3.41451873,2581.3,2581.2,3.2078]
[1751602947303,3.9113,2581.6,2581.2,6.59514873]
[1751602947503,4.68574,2581.6,2581.5,0.74736]
[1751602947805,0.77444,2581.6,2581.5,0.74736]
[1751602949704,0.77444,2581.6,2581.5,2.11096]
[1751602954614,0.77444,2581.6,2581.5,2.88543]
[1751602955014,0.77444,2581.6,2581.5,2.11096]
[1751602962613,0.77444,2581.6,2581.5,1.3636]
[1751602962817,0.77444,2581.6,2581.5,2.11096]
[1751602963721,0.77444,2581.6,2581.5,2.88543]
[1751602964323,0.77444,2581.6,2581.5,2.11096]
[1751602964522,0.77444,2581.6,2581.5,2.88543]
[1751602967828,0.77444,2581.6,2581.5,2.11096]
[1751602971326,1.42774,2581.6,2581.5,0.74736]
[1751602973626,0.7745,2581.4,2581.3,0.6477]
[1751602973825,3.41448873,2581.4,2581.3,0.6477]
[1751602974023,3.41448873,2581.4,2581.3,1.39506]
[1751602974224,3.41448873,2581.4,2581.3,0.74736]
[1751602978835,0.7745,2581.4,2581.3,0.74736]
[1751602979031,0.7745,2581.4,2581.3,2.82869]
[1751602980535,0.7745,2581.4,2581.3,2.05416]
[1751602982425,0.7745,2581.4,2581.3,2.82869]
[1751602984637,0.7745,2581.4,2581.3,2.05416]
[1751602984839,0.77453,2581.3,2581.2,3.2078]
[1751602985039,4.09361873,2581.3,2581.2,3.98236]
[1751602985239,4.09361873,2581.3,2581.2,4.72972]
[1751602985928,1.45363,2581.3,2581.2,4.72972]
[1751602986742,0.6791,2581.3,2581.2,4.72972]
[1751602986933,0.6791,2581.3,2581.2,6.13282]
[1751602988641,1.45363,2581.3,2581.2,6.13282]
[1751602991839,1.45363,2581.3,2581.2,2.92502]
[1751602992645,1.45363,2581.3,2581.2,2.17766]
[1751602992942,1.45363,2581.3,2581.2,2.92502]
[1751602998446,0.77453,2581.3,2581.2,2.92502]
[1751602998648,0.77452,2581.4,2581.3,0.77451]
[1751602998848,0.77452,2581.4,2581.3,2.83037]
[1751602999047,0.77452,2581.4,2581.3,2.08301]
[1751603003755,0.77452,2581.4,2581.3,1.3085]
[1751603004861,0.77452,2581.4,2581.2,0.77454]
[1751603004862,3.28798873,2581.5,2581.1,0.6386]
[1751603005156,3.28798873,2581.5,2581.2,0.77456]
[1751603005157,0.77456,2581.3,2581.2,0.77456]
[1751603005556,0.77456,2581.3,2581.2,2.91712]
[1751603006658,0.77456,2581.3,2581.2,2.14256]
[1751603006859,0.77456,2581.3,2581.2,0.74736]
[1751603007362,0.77456,2581.3,2581.2,1.52192]
[1751603010459,0.77456,2581.3,2581.2,2.86612]
[1751603010860,0.77456,2581.3,2581.2,2.09156]
[1751603011256,0.77456,2581.2,2581.1,3.8464]
[1751603011455,1.42456,2581.2,2581.1,3.8464]
[1751603011655,1.42456,2581.2,2581.1,4.59376]
[1751603012061,1.42456,2581.2,2581.1,5.93796]
[1751603014160,1.42456,2581.2,2581.1,4.59376]
[1751603015766,1.42456,2581.2,2581.1,5.36835]
[1751603016064,1.42456,2581.2,2581.1,6.75615]
[1751603016767,1.42456,2581.2,2581.1,3.54835]
[1751603016965,1.42456,2581.2,2581.1,6.75615]
[1751603018168,1.42456,2581.2,2581.1,5.98156]
[1751603019365,1.42456,2581.2,2581.1,6.75615]
[1751603019869,1.42456,2581.2,2581.1,5.98156]
[1751603020666,1.42456,2581.2,2581.1,6.75615]
[1751603022669,1.42456,2581.2,2581.1,6.00879]
[1751603022871,0.65,2581.2,2581.1,6.75615]
[1751603023170,0.77451,2581.4,2581.3,0.77451]
[1751603023561,0.77451,2581.4,2581.3,1.52187]
[1751603026968,1.45307,2581.5,2581.4,0.7745]
[1751603027166,0.77447,2581.5,2581.4,1.52184]
[1751603028674,0.77447,2581.5,2581.4,2.19534]
[1751603030073,0.6956,2581.7,2581.5,0.77445]
[1751603030074,0.77446,2581.6,2581.5,0.77445]
[1751603030273,0.77446,2581.6,2581.5,2.84071]
[1751603035674,0.77446,2581.6,2581.5,2.06626]
[1751603035975,3.41444873,2581.6,2581.5,2.06626]
[1751603038777,3.41444873,2581.6,2581.5,2.84073]
[1751603042981,0.77446,2581.6,2581.5,2.84073]
[1751603043781,2.88697185,2581.6,2581.5,2.84073]
[1751603044378,3.58254185,2581.7,2581.6,0.77444]
[1751603044577,3.58254185,2581.7,2581.6,2.15664]
[1751603045379,3.98215,2582.0,2581.6,2.12956]
[1751603045579,3.98215,2582.0,2581.9,0.77435]
[1751603046078,3.98215,2582.0,2581.9,2.15655]
[1751603046475,0.77435,2582.0,2581.9,2.15655]
[1751603048883,0.77431,2582.1,2582.0,0.7743]
[1751603054080,0.77431,2582.1,2582.0,1.52166]
[1751603054286,0.77431,2582.1,2582.0,1.4463]
[1751603058989,0.6906,2582.2,2582.1,0.77429]
[1751603059293,0.6906,2582.2,2582.1,2.17519]
[1751603059294,1.46486,2582.2,2582.1,2.17519]
[1751603059894,4.10461874,2582.2,2582.1,2.17519]
[1751603060693,4.10461874,2582.2,2582.1,2.92255]
[1751603063892,4.10461874,2582.2,2582.1,0.74736]
[1751603064099,0.77435,2581.9,2581.8,2.15136]
[1751603064293,3.41410874,2581.9,2581.8,2.15136]
[1751603064492,3.41410874,2581.9,2581.8,2.89872]
[1751603068703,0.77434,2582.0,2581.9,0.77435]
[1751603068904,0.77434,2582.0,2581.9,1.52171]
[1751603069306,0.77434,2582.0,2581.9,0.74736]
[1751603069503,0.77434,2582.0,2581.9,1.52171]
[1751603069805,2.88637373,2582.0,2581.9,1.52171]